bitfinex/quotes_SOLUSD_20220105
["timestamp","ask_amount","ask_price","bid_price","bid_amount"]
[1641410297439,6.9,162.34,162.21,25.65345457]
[1641410297839,6.9,162.34,162.22,1.24885457]
[1641410298040,6.9,162.34,162.23,2.95040665]
[1641410298440,6.9,162.34,162.25,25.60167716]
[1641410298640,6.9,162.34,162.25,20.60167716]
[1641410300443,8.64292994,162.34,162.25,20.60167716]
[1641410301642,8.64292994,162.34,162.25,20.10167716]
[1641410301846,0.7322625,162.27,162.25,20.10167716]
[1641410302844,8.64292994,162.34,162.25,20.10167716]
[1641410303643,6.9,162.34,162.25,15.10167716]
[1641410304144,15.77,162.34,162.24,77.1011]
[1641410304345,17.77292994,162.34,162.24,77.1011]
[1641410304543,17.77292994,162.34,162.23,2.95040665]
[1641410304746,17.51292994,162.34,162.23,2.95040665]
[1641410304946,1.74292994,162.33,162.23,2.95040665]
[1641410305145,8.87,162.32,162.23,2.95040665]
[1641410308750,2.04959335,162.23,162.22,26.20109445]
[1641410309151,2.04959335,162.23,162.22,23.59494049]
[1641410309651,5.08179332,162.23,162.22,23.59494049]
[1641410310055,2.04959335,162.23,162.19,6.57168449]
[1641410310256,2.04959335,162.23,162.17,1.7368838]
[1641410310257,6.57168449,162.19,162.17,1.7368838]
[1641410310455,37.0,162.17,162.0,3.0]
[1641410310686,8.87,162.16,162.0,6.43748716]
[1641410310857,8.87,162.16,162.01,9.4003]
[1641410311057,31.94620787,162.15,162.05,367.79121815]
[1641410311257,8.87,162.14,162.05,367.79121815]
[1641410311456,8.87,162.13,162.05,367.79121815]
[1641410311655,37.0,162.17,162.05,367.79121815]
[1641410311656,8.87,162.12,162.05,22.81189696]
[1641410313067,8.87,162.12,162.02,2.68575235]
[1641410313263,8.87,162.12,162.01,72.9496]
[1641410313665,5.0,162.05,162.01,72.9496]
[1641410313864,5.0,162.05,161.98,108.1212]
[1641410314063,5.0,162.05,161.96,29.55379266]
[1641410314064,5.0,162.05,161.99,28.26753687]
[1641410314868,5.0,162.05,161.97,2.58762102]
[1641410315263,5.0,162.05,161.93,77.89886548]
[1641410315463,5.0,162.05,161.92,0.72004179]
[1641410315862,5.0,162.05,161.93,30.83688062]
[1641410316064,8.87,162.04,161.93,30.83688062]
[1641410316262,8.87,162.04,161.93,32.85524794]
[1641410318692,8.87,162.04,161.93,27.85524794]
[1641410320793,5.0,162.05,161.93,27.85524794]
[1641410321797,5.0,162.05,161.94,8.87]
[1641410323698,5.0,162.05,161.94,3.87]
[1641410323902,25.12921714,162.08,161.94,3.87]
[1641410324300,3.17959335,161.94,161.93,27.85524794]
[1641410324902,3.17959335,161.94,161.91,9.094]
[1641410326002,3.17959335,161.94,161.91,35.11890524]
[1641410328706,3.03219997,161.93,161.91,30.11890524]
[1641410328907,3.17959335,161.94,161.91,30.11890524]
[1641410329507,3.17959335,161.94,161.91,27.13088929]
[1641410329707,3.17959335,161.94,161.91,26.63088929]
[1641410330707,3.17959335,161.94,161.92,2.97191498]
[1641410331712,0.00822443,161.94,161.92,2.97191498]
[1641410332111,8.03341385,162.04,161.93,93.0]
[1641410332716,8.03341385,162.04,161.93,92.2677375]
[1641410333713,8.87,162.08,161.93,87.2677375]
[1641410333913,10.61292994,162.12,161.93,96.1377375]
[1641410334313,11.11292994,162.12,161.93,96.1377375]
[1641410334514,10.61292994,162.12,161.93,96.1377375]
[1641410334715,8.87,162.12,161.95,31.76021178]
[1641410334914,10.84846154,162.12,161.95,114.27851178]
[1641410335113,13.84846154,162.12,161.95,114.27851178]
[1641410335316,1.74292994,162.11,161.95,114.27851178]
[1641410335516,27.00552185,162.09,161.95,114.27851178]
[1641410335714,35.87552185,162.09,161.95,105.40851178]
[1641410335917,37.85398339,162.09,161.95,105.40851178]
[1641410336118,40.85398339,162.09,161.95,31.76021178]
[1641410336415,3.0,162.08,161.95,31.76021178]
[1641410336618,8.87,162.07,161.92,75.9296]
[1641410336820,8.87,162.07,161.91,3.594]
[1641410337044,11.37292994,162.07,161.91,3.594]
[1641410337342,1.47846154,162.06,161.91,3.594]
[1641410337543,8.87,162.05,161.91,3.594]
[1641410337745,26.24776381,162.04,161.92,29.31697936]
[1641410337944,8.87,162.03,161.92,29.31697936]
[1641410338745,8.87,162.03,161.92,24.31697936]
[1641410340046,8.87,162.03,161.91,3.594]
[1641410340546,9.63,162.03,161.91,3.594]
[1641410340755,19.53826286,162.03,161.91,3.594]
[1641410340945,1.47846154,162.02,161.91,3.594]
[1641410341147,29.18970815,162.0,161.91,3.594]
[1641410341350,8.87,161.99,161.91,3.594]
[1641410341547,9.13,161.99,161.91,3.594]
[1641410341747,9.63,161.99,161.91,3.594]
[1641410342750,1.47846154,161.98,161.82,30.15131323]
[1641410342950,8.87,161.97,161.77,77.68304179]
[1641410343150,119.79,161.97,161.77,0.72004179]
[1641410343354,1.47846154,161.96,161.77,0.72004179]
[1641410343550,1.74292994,161.92,161.78,2.41968723]
[1641410343752,13.87,161.91,161.77,0.72004179]
[1641410343951,30.49666515,161.9,161.77,29.91929455]
[1641410344153,10.61292994,161.89,161.77,29.91929455]
[1641410344350,11.11292994,161.89,161.77,29.91929455]
[1641410344551,12.85139148,161.89,161.77,29.91929455]
[1641410344851,12.85139148,161.89,161.77,0.72004179]
[1641410344852,1.47846154,161.88,161.77,0.72004179]
[1641410345051,3.0,161.86,161.77,0.72004179]
[1641410345251,8.87,161.85,161.77,0.72004179]
[1641410345452,9.37,161.85,161.77,0.72004179]
[1641410345654,38.77153413,161.85,161.77,0.72004179]
[1641410346253,9.37,161.85,161.77,0.72004179]
[1641410347255,8.87,161.85,161.77,0.72004179]
[1641410348155,40.17955191,161.85,161.77,0.72004179]
[1641410348555,40.43955191,161.85,161.77,0.72004179]
[1641410348755,3.0,161.84,161.77,0.72004179]
[1641410348956,42.0,161.78,161.77,0.04484179]
[1641410349255,35.0,161.77,161.76,4.942914]
[1641410349455,58.0,161.75,161.72,0.04154959]
[1641410349668,66.87,161.75,161.72,0.04154959]
[1641410349957,177.55,161.75,161.72,0.04154959]
[1641410350158,18.5340843,161.74,161.72,0.04154959]
[1641410350356,14.93439994,161.73,161.72,0.04154959]
[1641410350555,14.93439994,161.73,161.62,2.7708995]
[1641410350556,146.12694578,161.73,161.62,2.7708995]
[1641410350759,29.09009378,161.72,161.62,2.7708995]
[1641410350960,8.87,161.71,161.6,2.01030278]
[1641410351158,121.26846154,161.71,161.59,0.15471723]
[1641410351457,1.47846154,161.7,161.59,0.15471723]
[1641410351658,3.0,161.66,161.59,0.15471723]
[1641410351857,8.87,161.65,161.59,0.15471723]
[1641410352056,10.34846154,161.65,161.59,0.15471723]
[1641410352257,3.0,161.63,161.59,0.15471723]
[1641410352456,35.8801138,161.62,161.59,0.15471723]
[1641410352657,8.87,161.61,161.59,0.15471723]
[1641410352856,14.93439994,161.61,161.59,0.15471723]
[1641410353462,35.0,161.6,161.51,15.30945871]
[1641410353659,8.87,161.59,161.51,15.30945871]
[1641410354260,13.87,161.59,161.51,43.5146779]
[1641410354463,13.87,161.59,161.52,2.6623657]
[1641410357768,13.87,161.59,161.52,2.1623657]
[1641410359574,39.16495157,161.59,161.51,15.30945871]
[1641410360577,13.87,161.59,161.52,2.72726482]
[1641410361378,5.0,161.59,161.52,2.72726482]
[1641410361583,5.0,161.59,161.52,30.92402355]
[1641410362182,8.87,161.68,161.53,99.0]
[1641410363806,8.87,161.72,161.53,107.87]
[1641410364002,8.87,161.72,161.56,2.22591042]
[1641410364605,8.87,161.72,161.56,25.09877552]
[1641410365805,8.87,161.72,161.56,34.37647552]
[1641410366208,3.0,161.78,161.57,8.87]
[1641410366412,8.87,161.78,161.57,55.112]
[1641410366808,8.87,161.78,161.59,2.52371012]
[1641410367011,8.87,161.78,161.63,9.2738]
[1641410367208,8.87,161.78,161.64,2.95536715]
[1641410370014,8.87,161.82,161.65,8.87]
[1641410370513,8.37,161.82,161.65,8.87]
[1641410370912,8.37,161.82,161.67,9.2715]
[1641410371112,8.37,161.82,161.68,2.19805752]
[1641410371912,10.61292994,161.86,161.69,8.87]
[1641410372114,8.87,161.86,161.72,3.00548083]
[1641410372315,8.87,161.86,161.72,32.6461563]
[1641410373420,10.61292994,161.9,161.73,8.87]
[1641410375020,1.74292994,161.9,161.73,8.87]
[1641410375220,1.74292994,161.9,161.73,31.9893]
[1641410375421,12.36161313,161.94,161.77,2.69113076]
[1641410375422,1.74292994,161.91,161.77,2.69113076]
[1641410375720,1.74292994,161.91,161.78,8.87]
[1641410375922,28.06575551,161.93,161.78,8.87]
[1641410376125,1.74292994,161.93,161.78,8.87]
[1641410376627,1.74292994,161.93,161.78,18.1344]
[1641410377021,1.74292994,161.94,161.78,18.1344]
[1641410377425,33.32058548,161.97,161.78,18.1344]
[1641410377624,33.32058548,161.97,161.78,120.4127]
[1641410377826,33.32058548,161.97,161.8,3.01834502]
[1641410378026,33.32058548,161.97,161.81,24.74568348]
[1641410378426,33.82058548,161.97,161.81,24.74568348]
[1641410378828,36.82058548,161.97,161.81,24.74568348]
[1641410379028,13.48390681,161.96,161.81,24.74568348]
[1641410379229,8.87,161.95,161.81,24.74568348]
[1641410379426,8.87,161.95,161.8,3.01834502]
[1641410379832,11.10846154,161.95,161.8,3.01834502]
[1641410380234,3.0,161.94,161.8,3.01834502]
[1641410380433,39.34642736,161.93,161.8,3.01834502]
[1641410380632,37.8248889,161.93,161.8,3.01834502]
[1641410380834,38.3248889,161.93,161.8,3.01834502]
[1641410381133,3.0,161.92,161.8,3.01834502]
[1641410381332,8.87,161.91,161.8,3.01834502]
[1641410381737,9.37,161.91,161.8,3.01834502]
[1641410382565,10.84846154,161.91,161.8,3.01834502]
[1641410382765,9.37,161.91,161.8,3.01834502]
[1641410382965,3.0,161.9,161.8,3.01834502]
[1641410383265,37.61996405,161.89,161.8,3.01834502]
[1641410384267,37.61996405,161.89,161.76,27.37491695]
[1641410385773,37.61996405,161.89,161.75,2.94504076]
[1641410385971,38.37996405,161.89,161.75,2.94504076]
[1641410386369,38.11996405,161.89,161.75,2.94504076]
[1641410388270,37.61996405,161.89,161.75,2.94504076]
[1641410390284,39.59842559,161.89,161.75,2.94504076]
[1641410390784,42.59842559,161.89,161.75,2.94504076]
[1641410390984,42.85842559,161.89,161.75,2.94504076]
[1641410392991,42.59842559,161.89,161.75,2.94504076]
[1641410393202,40.61996405,161.89,161.75,2.94504076]
[1641410393407,37.61996405,161.89,161.75,2.94504076]
[1641410395310,40.61996405,161.89,161.75,2.94504076]
[1641410396314,41.11996405,161.89,161.71,23.7272]
[1641410396514,42.85842559,161.89,161.71,23.7272]
[1641410396814,153.77842559,161.89,161.7,75.6646]
[1641410397011,3.0,161.88,161.66,84.4391]
[1641410397209,3.0,161.85,161.68,152.36141847]
[1641410397411,38.39046217,161.84,161.68,152.36141847]
[1641410397612,40.12892371,161.84,161.68,30.58791847]
[1641410397811,40.62892371,161.84,161.68,25.58791847]
[1641410398013,1.47846154,161.83,161.68,2.86292267]
[1641410398213,8.87,161.82,161.68,2.86292267]
[1641410398413,123.29,161.82,161.68,2.86292267]
[1641410398615,1.47846154,161.81,161.68,2.86292267]
[1641410398819,8.87,161.8,161.68,2.86292267]
[1641410399016,29.83157817,161.79,161.68,2.86292267]
[1641410399217,8.87,161.78,161.68,2.86292267]
[1641410399417,9.37,161.78,161.68,2.86292267]
[1641410400519,8.87,161.78,161.68,2.86292267]
[1641410402821,2.13707733,161.68,161.65,2.99881816]
[1641410404125,29.8065081,161.75,161.63,8.87]
[1641410405224,29.8065081,161.75,161.64,32.99441126]
[1641410406223,29.8065081,161.75,161.61,32.3559]
[1641410406721,38.6765081,161.75,161.61,23.4859]
[1641410407127,38.6765081,161.75,161.62,2.16803727]
[1641410407528,39.1765081,161.75,161.62,2.16803727]
[1641410407928,38.6765081,161.75,161.63,1.0]
[1641410408328,38.6765081,161.75,161.64,31.81711307]
[1641410410229,38.6765081,161.75,161.63,1.0]
[1641410412358,39.1765081,161.75,161.63,1.0]
[1641410412555,41.6765081,161.75,161.63,1.0]
[1641410412756,41.6765081,161.75,161.63,26.27300469]
[1641410412959,41.6765081,161.75,161.62,2.16803727]
[1641410413357,42.1765081,161.75,161.62,2.16803727]
[1641410414258,3.0,161.74,161.62,2.16803727]
[1641410414559,8.87,161.73,161.62,2.16803727]
[1641410414960,9.37,161.73,161.62,2.16803727]
[1641410415761,8.87,161.73,161.62,2.16803727]
[1641410417960,2.83196273,161.62,161.61,77.34255489]
[1641410419066,2.83196273,161.62,161.61,2.34255489]
[1641410419763,2.83196273,161.62,161.61,50.34255489]
[1641410422866,8.89636267,161.62,161.61,47.56455654]
[1641410423467,2.83196273,161.62,161.57,6.44843609]
[1641410424070,2.83196273,161.62,161.56,8.87]
[1641410424571,2.83196273,161.62,161.57,2.63317426]
[1641410427974,2.36682574,161.57,161.55,2.8018842]
[1641410428976,2.83196273,161.62,161.56,99.0]
[1641410429976,27.37616113,161.61,161.56,101.19029147]
[1641410430176,27.37616113,161.61,161.52,106.6355]
[1641410431203,27.37616113,161.61,161.53,33.25875099]
[1641410431403,2.83196273,161.62,161.53,33.25875099]
[1641410433010,2.83196273,161.62,161.53,30.680559]
[1641410434811,2.83196273,161.62,161.54,8.87]
[1641410437912,2.83196273,161.62,161.54,3.87]
[1641410442422,2.83196273,161.62,161.54,13.1476]
[1641410443021,1.13,161.54,161.53,39.550559]
[1641410443222,2.83196273,161.62,161.54,93.13]
[1641410443822,8.87,161.67,161.54,93.13]
[1641410444220,8.87,161.67,161.54,90.29803727]
[1641410445825,8.87,161.71,161.55,8.87]
[1641410446021,8.87,161.71,161.56,26.44441559]
[1641410446823,60.03465825,161.74,161.57,36.91785705]
[1641410447023,60.03465825,161.74,161.59,3.01608232]
[1641410447322,60.03465825,161.74,161.59,25.58968232]
[1641410447924,8.87,161.74,161.6,8.87]
[1641410448123,23.4976,161.75,161.6,8.87]
[1641410448323,8.87,161.78,161.6,33.6002]
[1641410448923,34.73771762,161.78,161.61,24.60853307]
[1641410449124,34.73771762,161.78,161.62,33.1617]
[1641410449322,34.73771762,161.78,161.63,2.38547654]
[1641410450225,35.23771762,161.78,161.63,2.38547654]
[1641410450425,34.73771762,161.78,161.63,2.38547654]
[1641410450625,38.23771762,161.78,161.63,2.38547654]
[1641410452626,37.73771762,161.78,161.63,2.38547654]
[1641410452828,34.73771762,161.78,161.63,2.38547654]
[1641410457630,34.73771762,161.78,161.65,27.0436522]
[1641410458931,8.87,161.78,161.65,27.0436522]
[1641410459341,1.2270001,161.82,161.66,8.87]
[1641410459537,1.2270001,161.82,161.67,49.98582408]
[1641410459737,1.2270001,161.82,161.68,8.87]
[1641410459940,1.2270001,161.82,161.69,126.25225838]
[1641410460138,1.2270001,161.82,161.7,11.26226813]
[1641410461138,0.7270001,161.82,161.7,11.26226813]
[1641410464244,0.7270001,161.82,161.7,2.39226813]
[1641410464467,27.13619486,161.81,161.69,23.77165838]
[1641410464665,36.00619486,161.81,161.62,80.9871]
[1641410464865,22.5627,161.8,161.62,80.9871]
[1641410465067,8.87,161.79,161.62,80.9871]
[1641410465466,8.87,161.79,161.63,2.69225725]
[1641410465665,9.37,161.79,161.63,2.69225725]
[1641410465866,1.47846154,161.78,161.63,2.69225725]
[1641410466066,32.50624684,161.77,161.63,2.69225725]
[1641410466967,5.0,161.69,161.63,2.69225725]
[1641410467367,24.00888866,161.68,161.59,6.44742039]
[1641410467571,24.00888866,161.68,161.57,12.81328536]
[1641410467773,24.00888866,161.68,161.56,0.95880423]
[1641410467774,32.87888866,161.68,161.56,0.95880423]
[1641410468366,32.87888866,161.68,161.57,2.54270837]
[1641410468770,8.87,161.68,161.57,2.54270837]
[1641410469367,5.0,161.69,161.57,2.54270837]
[1641410469566,5.0,161.69,161.57,12.68314144]
[1641410470368,5.0,161.69,161.57,2.54270837]
[1641410471171,5.0,161.69,161.58,8.87]
[1641410471974,5.0,161.69,161.58,3.87]
[1641410473474,5.0,161.69,161.57,2.54270837]
[1641410473774,28.44212798,161.7,161.57,2.54270837]
[1641410474174,5.0,161.58,161.55,6.44768889]
[1641410474377,3.03219997,161.57,161.52,76.5714]
[1641410474574,5.0,161.58,161.53,6.44833002]
[1641410475179,5.0,161.58,161.54,2.21296398]
[1641410475375,5.0,161.58,161.51,15.30945871]
[1641410476379,34.25291558,161.58,161.52,2.4415392]
[1641410476781,34.25291558,161.58,161.51,15.30945871]
[1641410476988,34.25291558,161.58,161.51,10.30945871]
[1641410479786,34.25291558,161.58,161.51,12.59541607]
[1641410479986,34.25291558,161.58,161.51,10.30945871]
[1641410480585,8.87,161.57,161.51,10.30945871]
[1641410482091,8.87,161.57,161.51,5.30945871]
[1641410482790,8.87,161.57,161.52,2.37151132]
[1641410482989,5.0,161.58,161.52,2.37151132]
[1641410483490,5.0,161.58,161.51,5.30945871]
[1641410486898,26.24708647,161.57,161.51,5.30945871]
[1641410487101,26.24708647,161.57,161.51,0.30945871]
[1641410489804,5.0,161.58,161.51,0.30945871]
[1641410490835,5.0,161.58,161.51,30.51385089]
[1641410492029,5.0,161.58,161.51,25.51385089]
[1641410493030,8.87,161.67,161.51,34.38385089]
[1641410493232,23.1866,161.68,161.52,46.2501]
[1641410493430,23.1866,161.68,161.53,11.42566105]
[1641410493630,22.6814,161.71,161.53,11.42566105]
[1641410493831,22.6814,161.71,161.54,24.5398]
[1641410494036,22.6814,161.71,161.56,2.97249669]
[1641410494234,22.6814,161.71,161.57,74.1602]
[1641410496334,8.87,161.7,161.57,74.1602]
[1641410496534,8.87,161.7,161.56,2.97249669]
[1641410497133,5.0,161.57,161.56,2.97249669]
[1641410498034,5.0,161.57,161.55,26.36326507]
[1641410498233,5.0,161.57,161.52,22.6027]
[1641410498433,5.0,161.57,161.51,8.87]
[1641410499034,5.0,161.57,161.52,2.23474722]
[1641410499233,5.0,161.57,161.52,27.48541397]
[1641410500736,3.76,161.57,161.52,36.35541397]
[1641410500936,23.3478,161.67,161.53,99.0]
[1641410501136,23.3478,161.67,161.53,122.644]
[1641410501539,55.09359981,161.67,161.53,122.644]
[1641410501736,55.09359981,161.67,161.54,77.2336]
[1641410501937,55.09359981,161.67,161.55,2.54511915]
[1641410502140,2.45488085,161.55,161.54,79.43208634]
[1641410502337,2.45488085,161.55,161.54,2.19848634]
[1641410502542,1e-08,161.55,161.52,8.87]
[1641410502739,1e-08,161.55,161.53,99.8001]
[1641410505145,1e-08,161.55,161.54,8.87]
[1641410505642,1e-08,161.55,161.54,33.5178]
[1641410506241,0.68786727,161.71,161.55,9.27739999]
[1641410506443,0.68786727,161.71,161.56,8.87]
[1641410506646,26.35952694,161.73,161.57,22.5074]
[1641410506849,1.61642694,161.73,161.58,8.87]
[1641410507047,1.61642694,161.73,161.59,18.091]
[1641410507247,1.61642694,161.73,161.6,8.87]
[1641410507547,2.34342704,161.74,161.61,22.43499814]
[1641410507752,0.63586986,161.73,161.62,98.8475]
[1641410510474,0.63586986,161.73,161.61,24.64633604]
[1641410512077,5.0,161.62,161.61,24.64633604]
[1641410512880,5.0,161.62,161.61,68.64633604]
[1641410513376,2.34342704,161.74,161.62,0.76]
[1641410513779,2.34342704,161.74,161.63,8.87]
[1641410514379,0.7270001,161.74,161.64,2.43326801]
[1641410514581,0.7270001,161.74,161.66,9.2718]
[1641410514880,0.7270001,161.74,161.67,38.20378403]
[1641410516685,0.51114092,161.8,161.68,99.0]
[1641410516886,0.51114092,161.8,161.7,2.22584175]
[1641410517987,49.49924539,161.85,161.7,2.22584175]
[1641410518189,32.0722,161.85,161.7,2.22584175]
[1641410518986,0.5484118,161.84,161.7,2.22584175]
[1641410519186,29.92523901,161.84,161.7,2.22584175]
[1641410519588,1.61642694,161.81,161.7,2.22584175]
[1641410519789,31.3101745,161.8,161.7,2.22584175]
[1641410520589,1.61642694,161.81,161.7,2.22584175]
[1641410521190,1.61642694,161.82,161.7,2.22584175]
[1641410521789,24.03153942,161.83,161.7,2.22584175]
[1641410522588,22.41511248,161.83,161.71,8.87]
[1641410522889,22.41511248,161.83,161.72,25.65049095]
[1641410523388,0.5484118,161.84,161.72,25.65049095]
[1641410523989,2.16483874,161.84,161.72,25.65049095]
[1641410524492,2.16483874,161.84,161.74,2.36250856]
[1641410524690,0.5484118,161.84,161.74,2.36250856]
[1641410525293,1.61642694,161.86,161.74,2.36250856]
[1641410525696,26.14982694,161.87,161.74,2.36250856]
[1641410525992,1.61642694,161.87,161.74,2.36250856]
[1641410526193,0.64042072,161.86,161.74,2.36250856]
[1641410526394,25.82680419,161.86,161.74,2.36250856]
[1641410526995,25.82680419,161.86,161.74,11.23250856]
[1641410527195,25.82680419,161.86,161.74,86.92490856]
[1641410528596,27.44323113,161.86,161.74,87.18490856]
[1641410529500,1.61642694,161.85,161.74,87.18490856]
[1641410531097,52.61762343,161.74,161.72,9.3969]
[1641410531298,106.93439994,161.73,161.6,477.19830012]
[1641410531498,106.93439994,161.73,161.6,470.75030233]
[1641410531698,110.92,161.72,161.6,470.75030233]
[1641410531899,8.87,161.71,161.6,470.75030233]
[1641410532098,8.87,161.71,161.61,28.54975794]
[1641410536229,52.61762343,161.74,161.61,28.54975794]
[1641410537030,52.61762343,161.74,161.61,52.51265794]
[1641410537631,52.61762343,161.74,161.61,126.33135794]
[1641410539030,2.27,161.62,161.61,126.33135794]
[1641410539231,2.27,161.62,161.61,52.51265794]
[1641410539432,52.61762343,161.74,161.62,95.27]
[1641410539835,61.48762343,161.74,161.62,95.27]
[1641410540133,30.15247954,161.73,161.62,95.27]
[1641410540333,8.87,161.72,161.62,2.27]
[1641410540536,8.87,161.72,161.57,0.57973844]
[1641410540734,8.87,161.72,161.58,2.46464513]
[1641410540937,9.37,161.72,161.58,2.46464513]
[1641410541338,9.37,161.72,161.57,0.57973844]
[1641410541539,1.47846154,161.71,161.57,0.57973844]
[1641410541737,8.87,161.7,161.57,0.57973844]
[1641410541941,26.45352435,161.69,161.57,0.57973844]
[1641410542137,5.0,161.62,161.57,0.57973844]
[1641410543440,4.04119577,161.62,161.57,0.57973844]
[1641410543838,4.04119577,161.62,161.58,22.92816659]
[1641410544838,4.04119577,161.62,161.57,0.57973844]
[1641410545841,4.04119577,161.62,161.58,26.57801426]
[1641410547040,4.04119577,161.62,161.58,21.57801426]
[1641410552049,4.04119577,161.62,161.58,16.57801426]
[1641410553454,4.04119577,161.62,161.56,3.03196375]
[1641410554355,4.04119577,161.62,161.53,30.51029197]
[1641410554797,4.04119577,161.62,161.53,7.54369197]
[1641410555198,4.04119577,161.62,161.53,10.57018487]
[1641410557100,4.04119577,161.62,161.53,2.54369197]
[1641410557101,79.0,161.61,161.53,2.54369197]
[1641410557299,87.87,161.61,161.52,1.2890819]
[1641410562107,3.7109181,161.52,161.5,8.95118777]
[1641410562308,3.7109181,161.52,161.5,44.95118777]
[1641410564209,7.75211387,161.52,161.5,44.95118777]
[1641410564609,7.75211387,161.52,161.5,42.0]
[1641410565210,13.81651381,161.52,161.5,42.0]
[1641410565411,10.78431384,161.52,161.5,42.0]
[1641410565610,7.75211387,161.52,161.5,42.0]
[1641410566314,7.75211387,161.52,161.5,44.622317]
[1641410567311,6.06439994,161.51,161.5,39.622317]
[1641410567512,7.75211387,161.52,161.5,39.622317]
[1641410567712,1.387e-05,161.52,161.51,99.0]
[1641410569111,1.387e-05,161.52,161.5,1.0]
[1641410570013,1.387e-05,161.52,161.47,22.6065]
[1641410570212,1.387e-05,161.52,161.46,8.87]
[1641410570615,1.387e-05,161.52,161.46,33.4292]
[1641410572317,5.0,161.5,161.46,33.4292]
[1641410572517,5.0,161.5,161.46,8.87]
[1641410573116,5.0,161.5,161.47,2.19666765]
[1641410576947,5.0,161.5,161.47,11.06666765]
[1641410577146,5.0,161.5,161.48,3.02737484]
[1641410577347,5.0,161.5,161.49,98.87]
[1641410577947,1.387e-05,161.52,161.5,52.990577]
[1641410578147,1.387e-05,161.52,161.51,31.6758]
[1641410580949,1.61642694,161.69,161.51,31.6758]
[1641410581148,1.61642694,161.7,161.51,31.6758]
[1641410581449,1.61642694,161.7,161.52,24.6043]
[1641410581653,1.61642694,161.7,161.53,8.87]
[1641410581851,1.61642694,161.7,161.54,29.71319733]
[1641410582052,54.12443193,161.71,161.55,31.4451]
[1641410582250,54.12443193,161.71,161.55,26.4451]
[1641410583053,1.61642694,161.71,161.56,78.0329]
[1641410583256,1.61642694,161.71,161.57,11.84085404]
[1641410583458,1.61642694,161.73,161.58,23.4963]
[1641410583660,1.61642694,161.73,161.59,8.87]
[1641410583855,1.61642694,161.73,161.6,2.99698823]
[1641410584054,1.61642694,161.73,161.61,8.87]
[1641410584263,1.61642694,161.73,161.64,9.2731]
[1641410584459,1.61642694,161.73,161.65,8.87]
[1641410584655,52.61762343,161.74,161.65,8.87]
[1641410584656,52.61762343,161.74,161.66,2.63539448]
[1641410584858,52.61762343,161.74,161.67,8.87]
[1641410585257,52.61762343,161.74,161.68,23.68734001]
[1641410585457,52.61762343,161.74,161.68,8.87]
[1641410586059,52.61762343,161.74,161.57,110.92]
[1641410586257,52.61762343,161.74,161.6,8.87]
[1641410586458,52.61762343,161.74,161.61,31.37984867]
[1641410586660,81.98469847,161.74,161.62,8.87]
[1641410587260,1.97,161.65,161.62,8.87]
[1641410588263,1.47,161.65,161.62,8.87]
[1641410590964,6.06439994,161.64,161.62,8.87]
[1641410591764,6.06439994,161.64,161.63,0.57973844]
[1641410591990,1.47,161.65,161.63,0.57973844]
[1641410593764,31.17180511,161.68,161.63,0.57973844]
[1641410594166,0.89026156,161.63,161.6,2.41303107]
[1641410594768,0.89026156,161.63,161.58,23.6358]
[1641410595366,0.89026156,161.63,161.57,40.00148578]
[1641410595769,0.89026156,161.63,161.57,42.61603101]
[1641410596266,0.89026156,161.63,161.57,8.87]
[1641410596466,0.89026156,161.63,161.54,77.1412]
[1641410596668,0.89026156,161.63,161.53,8.87]
[1641410597067,29.77082073,161.62,161.53,8.87]
[1641410597270,29.77082073,161.62,161.52,2.79182329]
[1641410598870,0.89026156,161.63,161.52,2.79182329]
[1641410599068,0.89026156,161.63,161.52,11.66182329]
[1641410599269,0.89026156,161.63,161.52,11.57047084]
[1641410599899,29.83042331,161.62,161.52,11.57047084]
[1641410601300,29.83042331,161.62,161.52,8.87]
[1641410602400,29.83042331,161.62,161.5,2.76408782]
[1641410602600,29.83042331,161.62,161.49,6.45498074]
[1641410602798,29.83042331,161.62,161.48,8.87]
[1641410603598,29.83042331,161.62,161.49,2.41761504]
[1641410606202,0.89026156,161.63,161.49,2.41761504]
[1641410606402,0.89026156,161.63,161.5,31.6327]
[1641410607201,0.89026156,161.63,161.51,27.57059879]